bitfinex-derivatives/quotes_SOLF0:USTF0_20250224
["timestamp","ask_amount","ask_price","bid_price","bid_amount"]
[1740441274720,1.27446602,141.84,141.68,7.0592]
[1740441275218,7.0573,141.73,141.67,7.0594]
[1740441275419,9.66534395,141.87,141.69,0.04868396]
[1740441275719,7.0523,141.83,141.69,3.9664]
[1740441275921,9.66534395,141.87,141.69,3.9664]
[1740441276120,38.6613758,141.93,141.69,3.9664]
[1740441276320,7.052,141.83,141.7,1.4114326]
[1740441276617,0.04536533,141.78,141.75,0.04478956]
[1740441277018,0.04536533,141.78,141.76,7.0549]
[1740441278523,7.052,141.83,141.75,0.04478956]
[1740441278723,7.052,141.83,141.77,7.0548]
[1740441279822,7.052,141.83,141.79,0.05307747]
[1740441280328,0.0776,141.96,141.79,0.05307747]
[1740441280623,7.0534,141.8,141.74,7.056]
[1740441280824,394.0,141.94,141.7,15.7514326]
[1740441281017,1.27315719,141.93,141.7,15.7514326]
[1740441281423,7.0534,141.8,141.75,7.0555]
[1740441282126,0.05268389,141.79,141.76,0.04607326]
[1740441283328,7.0549,141.77,141.76,0.04607326]
[1740441285025,0.05268389,141.79,141.66,14.28]
[1740441285219,0.0776,141.87,141.69,7.0584]
[1740441285220,7.0568,141.74,141.69,7.0584]
[1740441285425,194.0,141.85,141.69,7.0584]
[1740441285731,7.0568,141.74,141.69,7.0584]
[1740441286031,7.0568,141.74,141.7,7.0582]
[1740441286226,0.0532184,141.73,141.7,7.10581213]
[1740441286423,0.0532184,141.73,141.7,0.04761213]
[1740441286624,0.0532184,141.73,141.72,7.0574]
[1740441287231,194.0,141.82,141.7,0.04761213]
[1740441287428,194.0,141.81,141.64,3.9419]
[1740441287633,194.0,141.8,141.64,3.9419]
[1740441288327,194.0,141.79,141.64,3.9419]
[1740441288530,0.0489975,141.73,141.71,0.04552886]
[1740441288833,194.0,141.78,141.71,0.04552886]
[1740441289031,0.0499656,141.73,141.66,7.0601]
[1740441289235,0.0499656,141.76,141.73,1.551e-05]
[1740441289428,194.0,141.75,141.66,7.0601]
[1740441289628,7.0586,141.7,141.66,7.0601]
[1740441290231,14.28,141.8,141.57,3.9608]
[1740441290432,0.04560017,141.69,141.67,5.571e-05]
[1740441290633,7.0616,141.64,141.6,7.0631]
[1740441291435,7.0616,141.64,141.57,3.9608]
[1740441291436,7.0605,141.66,141.62,7.0622]
[1740441291741,0.04505034,141.63,141.62,7.0622]
[1740441292535,0.04505034,141.63,141.61,7.11428065]
[1740441292733,194.0,141.74,141.61,0.05178065]
[1740441292933,194.0,141.74,141.57,3.9608]
[1740441293534,7.0583,141.71,141.66,7.0601]
[1740441293734,194.0,141.74,141.66,7.0601]
[1740441293930,7.0589,141.69,141.67,0.05144822]
[1740441295147,0.05282887,141.7,141.67,7.11104822]
[1740441295529,0.05282887,141.7,141.67,0.05144822]
[1740441295731,0.05282887,141.7,141.69,7.0589]
[1740441295938,194.0,141.81,141.67,0.05144822]
[1740441296239,194.0,141.8,141.71,7.0578]
[1740441296440,194.0,141.79,141.71,7.0578]
[1740441296738,7.0562,141.75,141.71,7.0578]
[1740441297042,194.0,141.79,141.6,14.28]
[1740441297339,194.0,141.78,141.61,1.4123296]
[1740441297538,0.04686628,141.71,141.68,0.05398672]
[1740441297730,194.0,141.78,141.61,1.4123296]
[1740441297935,0.04948639,141.71,141.68,0.04949005]
[1740441298131,7.057,141.73,141.61,1.4123296]
[1740441298342,0.04813491,141.71,141.69,7.0587]
[1740441298638,0.04813491,141.71,141.68,0.05163247]
[1740441298833,0.04813491,141.71,141.69,7.0589]
[1740441299239,0.04813491,141.71,141.68,0.05163247]
[1740441299429,7.0562,141.75,141.71,7.0575]
[1740441299934,194.0,141.78,141.62,14.1248]
[1740441300130,7.0558,141.76,141.72,7.0574]
[1740441300737,7.0558,141.76,141.73,0.05330674]
[1740441301141,194.0,141.78,141.73,0.05330674]
[1740441301742,194.0,141.78,141.74,7.0561]
[1740441301942,194.0,141.78,141.73,0.05330674]
[1740441302140,7.0549,141.77,141.73,7.10990674]
[1740441302339,194.0,141.78,141.73,0.05330674]
[1740441302740,194.0,141.78,141.75,7.0557]
[1740441302942,194.0,141.78,141.73,0.05330674]
[1740441303840,194.0,141.86,141.73,0.05330674]
[1740441304039,194.0,141.85,141.69,14.28]
[1740441304345,7.0532,141.81,141.78,0.05128856]
[1740441304536,194.0,141.85,141.78,0.05128856]
[1740441304938,7.0522,141.83,141.79,7.0536]
[1740441305142,7.0522,141.83,141.78,0.05128856]
[1740441305542,7.0522,141.83,141.8,7.0534]
[1740441305742,7.0522,141.83,141.78,0.05128856]
[1740441305743,7.052,141.83,141.78,0.05128856]
[1740441306041,7.052,141.83,141.79,7.0535]
[1740441306245,7.052,141.83,141.78,0.05128856]
[1740441306638,194.0,141.85,141.8,7.0533]
[1740441307043,194.0,141.85,141.81,0.04533924]
[1740441307238,52.7559758,141.93,141.81,0.04533924]
[1740441307438,52.9910758,141.93,141.72,14.1146]
[1740441307641,52.9910758,141.93,141.86,0.04899748]
[1740441307838,52.9910758,141.93,141.72,14.1146]
[1740441308042,52.9910758,141.93,141.88,1.231e-05]
[1740441308344,14.3297,141.93,141.72,14.1146]
[1740441308543,14.3297,141.93,141.8,7.0533]
[1740441308740,14.3297,141.93,141.72,14.1146]
[1740441309043,14.3297,141.93,141.81,7.0526]
[1740441309241,0.04997731,141.84,141.71,184.68]
[1740441309544,14.3297,141.93,141.86,0.0539614]
[1740441309545,194.0,141.92,141.86,0.0539614]
[1740441309741,7.0505,141.86,141.83,7.0516]
[1740441309946,7.10049972,141.86,141.83,7.10288608]
[1740441310141,0.04999972,141.86,141.83,7.10298608]
[1740441310336,0.04999972,141.86,141.83,0.05128608]
[1740441311243,38.6613758,141.94,141.87,7.0496]
[1740441311448,38.6613758,141.94,141.79,12.0519]
[1740441311642,7.049,141.89,141.85,7.0505]
[1740441311848,38.6613758,141.94,141.79,12.0519]
[1740441312246,7.0503,141.87,141.85,0.04839392]
[1740441312442,38.6613758,141.94,141.79,12.0519]
[1740441312746,38.6613758,141.94,141.85,0.05155795]
[1740441312948,38.6613758,141.94,141.79,12.0519]
[1740441313147,9.89374395,141.96,141.88,0.0539407]
[1740441313348,9.89374395,141.96,141.91,8.88e-05]
[1740441313548,9.89374395,141.96,141.79,12.0519]
[1740441314552,28.99603185,141.97,141.86,0.04758515]
[1740441314751,22.54713185,141.97,141.87,1.4097413]
[1740441314953,108.15315949,141.99,141.88,4.1025]
[1740441315148,108.15315949,141.99,141.88,5.37518189]
[1740441315349,8.94277673,141.99,141.89,2.68222449]
[1740441315554,220.18868318,142.0,141.99,7.044]
[1740441316250,179.62632642,142.08,141.99,7.044]
[1740441316251,19.94225675,142.05,142.04,7.0415]
[1740441317053,5.70895675,142.05,142.04,7.0415]
[1740441317259,5.675e-05,142.05,142.04,7.0415]
[1740441317953,7.0355,142.17,142.05,7.041]
[1740441318158,77.4655,142.17,142.05,7.041]
[1740441318355,70.43,142.16,142.1,0.04569204]
[1740441318555,4.0437,142.2,142.06,185.9278558]
[1740441318856,4.0437,142.2,142.12,0.05417424]
[1740441319258,184.52,142.36,142.12,0.05417424]
[1740441319559,70.43,142.24,142.15,7.036]
[1740441319759,70.43,142.24,142.23,0.0490137]
[1740441319958,7.0311,142.26,142.15,7.036]
[1740441320163,7.0311,142.26,142.22,0.04910684]
[1740441320351,7.0311,142.26,142.15,7.036]
[1740441320656,7.0299,142.28,142.23,0.05041879]
[1740441320862,70.43,142.3,142.19,184.47374198]
[1740441321162,70.43,142.3,142.19,184.42]
[1740441321462,7.0289,142.3,142.23,0.04697697]
[1740441321660,8.3355,142.35,142.24,236.78695466]
[1740441321855,70.43,142.3,142.24,236.78695466]
[1740441322061,70.43,142.28,142.24,236.78695466]
[1740441322259,70.43,142.34,142.24,64.63947992]
[1740441322464,70.43,142.31,142.24,64.63947992]
[1740441322657,21.27,142.56,142.28,0.05203408]
[1740441322852,70.43,142.29,142.25,64.63947992]
[1740441323058,70.43,142.3,142.25,64.63947992]
[1740441323260,42.3208,142.54,142.25,64.63947992]
[1740441323455,70.43,142.26,142.25,64.63947992]
[1740441323662,70.43,142.26,142.14,4.1019]
[1740441323663,70.43,142.26,142.08,481.43871088]
[1740441323859,205.55,142.44,142.29,150.05180306]
[1740441324163,7.0286,142.3,142.29,75.74910306]
[1740441324355,0.04813637,142.37,142.27,209.92453188]
[1740441324556,14.0497,142.38,142.27,209.92453188]
[1740441325062,7.0296,142.28,142.27,195.37013188]
[1740441325262,21.27,142.39,142.18,28.12358966]
[1740441325557,21.27,142.37,142.18,28.12358966]
[1740441325763,0.04585771,142.3,142.27,1.479e-05]
[1740441325964,7.0338,142.2,142.18,25.87310445]
[1740441326156,194.0,142.19,142.18,25.87310445]
[1740441326365,14.24,142.23,142.18,4.44020445]
[1740441326554,7.035,142.17,142.16,29.57364355]
[1740441326761,184.22,142.17,142.13,44.58131593]
[1740441327158,205.49,142.17,142.09,23.31586132]
[1740441327363,0.0522179,142.16,142.09,1.8144613]
[1740441327568,0.0522179,142.16,142.09,6.13e-05]
[1740441327863,7.039,142.09,142.08,384.42307218]
[1740441328064,21.279,142.09,142.08,220.26907218]
[1740441328264,7.044,141.99,141.83,12.1058]
[1740441328466,14.24,142.0,141.83,3.9139]
[1740441328766,14.24,142.0,141.84,374.52940319]
[1740441328969,14.24,142.0,141.9,0.04629114]
[1740441329269,0.0479819,141.93,141.81,374.52940319]
[1740441329666,14.24,142.0,141.81,374.52940319]
[1740441329865,7.0465,141.94,141.81,374.52940319]
[1740441330168,7.0465,141.94,141.82,374.52940319]
[1740441330368,0.04874136,141.89,141.86,0.04620317]
[1740441332060,0.04874136,141.89,141.86,374.57560636]
[1740441332761,510.32529118,141.88,141.86,374.57560636]
[1740441333069,510.32529118,141.88,141.77,12.3941]
[1740441333270,510.32529118,141.88,141.85,374.47412083]
[1740441333571,510.32529118,141.88,141.77,12.3941]
[1740441333770,510.32529118,141.88,141.84,374.47412083]
[1740441333965,901.90627545,141.87,141.84,374.47412083]
[1740441334168,901.95298206,141.87,141.85,325.34598594]
[1740441334473,901.90627545,141.87,141.81,325.29353174]
[1740441334666,901.95564422,141.87,141.85,0.04500722]
[1740441334872,134.3515252,141.86,141.85,0.04500722]
[1740441335063,134.3515252,141.86,141.67,14.26]
[1740441335268,134.3515252,141.86,141.84,0.04848828]
[1740441335469,134.3515252,141.86,141.77,325.29353174]
[1740441335670,134.40328474,141.86,141.84,0.04704559]
[1740441335975,134.3515252,141.85,141.78,7.0532]
[1740441336271,134.3515252,141.85,141.67,14.26]
[1740441336471,134.3515252,141.85,141.8,0.05211543]
[1740441336663,134.3515252,141.85,141.77,325.29353174]
[1740441336664,134.3515252,141.85,141.78,7.0535]
[1740441336863,0.05197688,141.84,141.78,7.0535]
[1740441337068,0.05197688,141.84,141.81,0.04852819]
[1740441337264,95.04172002,141.84,141.81,0.04852819]
[1740441337469,134.40350208,141.84,141.81,0.04852819]
[1740441338273,134.40350208,141.84,141.83,325.29353174]
[1740441338580,16.84330209,141.84,141.83,332.34473174]
[1740441338870,767.55475025,141.87,141.81,0.04852819]
[1740441339076,741.76965025,141.87,141.86,332.34323174]
[1740441339371,362.87961851,141.87,141.86,7.0497]
[1740441339576,351.36581851,141.87,141.86,7.0497]
[1740441340177,351.36581851,141.87,141.86,6.95554624]
[1740441341876,0.05147929,141.88,141.86,6.95554624]
[1740441342072,0.05147929,141.88,141.85,14.3067283]
[1740441342276,7.929e-05,141.88,141.87,7.0492]
[1740441342770,7.929e-05,141.88,141.86,1.4098406]
[1740441342971,7.929e-05,141.88,141.86,8.4594406]
[1740441343174,7.929e-05,141.88,141.86,1.4098406]
[1740441345376,7.929e-05,141.88,141.85,0.0467283]
[1740441348584,144.83014771,141.98,141.86,154.99473135]
[1740441348778,144.83014771,141.97,141.86,154.99473135]
[1740441349083,151.87454771,141.97,141.86,154.99473135]
[1740441349283,144.83014771,141.97,141.86,154.99473135]
[1740441349483,144.83014771,141.97,141.86,162.04413135]
[1740441349682,0.04471941,141.93,141.9,0.04915947]
[1740441350284,144.83014771,141.92,141.86,148.55263135]
[1740441350474,4.1954,141.91,141.86,148.55263135]
[1740441350873,4.1954,141.91,141.87,148.55263135]
[1740441351177,14.26,141.98,141.87,135.66763135]
[1740441351374,0.04670497,141.9,141.88,0.04929447]
[1740441351580,55.26628122,141.97,141.87,135.66763135]
[1740441351781,55.26628122,141.96,141.87,135.66763135]
[1740441352377,7.0461,141.94,141.87,135.66763135]
[1740441352583,7.0461,141.94,141.88,180.02993722]
[1740441352883,7.0461,141.94,141.89,0.04844926]
[1740441353085,7.0468,141.92,141.89,0.04844926]
[1740441353476,55.26628122,141.96,141.89,0.04844926]
[1740441353785,55.26628122,141.96,141.89,59.93087436]
[1740441353984,0.0479734,141.94,141.89,59.93087436]
[1740441354886,55.26628122,141.93,141.89,40.45407436]
[1740441355084,55.26628122,141.93,141.92,285.31672132]
[1740441355285,55.26628122,141.93,141.92,278.87512132]
[1740441355685,62.31248122,141.93,141.92,278.87512132]
[1740441356486,62.31248122,141.93,141.91,0.04990971]
[1740441356783,55.26628122,141.93,141.91,0.04990971]
[1740441357580,7.0467,141.92,141.91,0.04990971]
[1740441359889,55.26628122,141.93,141.91,0.04990971]
[1740441360091,62.31268122,141.93,141.91,0.04990971]
[1740441361285,55.26628122,141.93,141.91,0.04990971]
[1740441361687,571.56079172,141.92,141.88,67.30734198]
[1740441362489,571.56079172,141.92,141.86,7.0495]
[1740441362890,0.04781665,141.9,141.88,0.04640464]
[1740441365597,105.48781194,141.89,141.88,0.04640464]
[1740441365796,105.48781194,141.89,141.85,472.98595694]
[1740441366595,105.48781194,141.89,141.85,480.03595694]
[1740441366899,245.30970587,141.89,141.85,472.98595694]
[1740441368394,245.30970587,141.89,141.86,7.09775247]
[1740441368594,245.30970587,141.89,141.86,0.04815247]
[1740441368790,139.82189393,141.89,141.86,0.04815247]
[1740441370186,7.0488,141.88,141.86,0.04815247]
[1740441370391,139.82189393,141.89,141.86,0.04815247]
[1740441370795,7.0492,141.87,141.86,0.04815247]
[1740441372796,7.0497,141.86,141.85,430.42995695]
[1740441372993,7.0497,141.86,141.85,362.64965695]
[1740441373297,7.0497,141.86,141.85,118.24915695]
[1740441373495,14.41529898,141.86,141.85,45.3842065]
[1740441373694,14.41529898,141.86,141.85,43.71457435]
[1740441373895,35.57529898,141.86,141.85,43.71457435]
[1740441374094,35.57529898,141.86,141.85,15.43627435]
[1740441374299,7.0502,141.85,141.84,6.157e-05]
[1740441374494,28.2102,141.85,141.84,6.157e-05]
[1740441374696,7.0557,141.75,141.68,3.9329]
[1740441374892,7.0557,141.75,141.68,29.26168909]
[1740441375094,14.24,141.79,141.68,29.26168909]
[1740441375299,7.0566,141.73,141.68,29.26168909]
[1740441375497,35.4,141.79,141.68,29.26168909]
[1740441375690,184.56,141.78,141.68,29.26168909]
[1740441375999,184.56,141.78,141.46,12.0589]
[1740441376000,0.04941606,141.75,141.46,12.0589]
[1740441376202,1.4110342,141.74,141.46,12.0589]
[1740441376395,7.0622,141.61,141.6,209.10440766]
[1740441376596,21.3222,141.61,141.6,187.34130766]
[1740441376792,14.26,141.61,141.6,187.34130766]
[1740441376998,14.26,141.61,141.46,12.0589]
[1740441377295,194.0,141.6,141.52,211.5237136]
[1740441377505,194.0,141.6,141.54,211.5237136]
[1740441377801,0.04588786,141.57,141.53,211.5237136]
[1740441378003,0.04588786,141.57,141.56,0.04609264]
[1740441378196,0.04588786,141.57,141.46,12.0589]
[1740441378402,175.23449511,141.59,141.52,204.51680624]
[1740441378596,182.29769511,141.59,141.48,204.51680624]
[1740441378804,175.23449511,141.59,141.48,204.51680624]
[1740441379300,175.23449511,141.59,141.5,204.51680624]
[1740441379496,0.05180877,141.55,141.47,7.0691]
[1740441379698,0.05180877,141.55,141.49,155.24488198]
[1740441380201,0.05180877,141.55,141.47,7.0691]
[1740441380399,0.05180877,141.55,141.49,155.24488198]
[1740441380702,113.09143114,141.58,141.51,0.03094993]
[1740441380897,0.05076427,141.53,141.51,0.03094993]
[1740441381098,113.09143114,141.58,141.51,0.03094993]
[1740441381294,0.04933206,141.53,141.51,0.03094993]
[1740441381695,113.09143114,141.54,141.44,36.73313366]
[1740441381896,0.05131573,141.53,141.5,56.61796805]
[1740441382203,0.05131573,141.53,141.5,63.68516805]
[1740441382499,0.05131573,141.53,141.5,56.61796805]
[1740441382713,113.14274687,141.53,141.52,7.0667]
[1740441383005,113.09143114,141.53,141.4,12.2468]
[1740441383200,113.09143114,141.53,141.43,32.94900015]
[1740441383405,113.09143114,141.53,141.44,32.94900015]
[1740441383700,0.04924513,141.49,141.4,8.2253]
[1740441383900,0.04924513,141.49,141.43,32.94900015]
[1740441384107,252.91332507,141.52,141.43,32.94900015]
[1740441384305,0.04911668,141.47,141.43,32.94900015]
[1740441384500,0.04911668,141.47,141.45,32.94900015]
[1740441384705,0.04911668,141.47,141.46,32.94900015]
[1740441384903,252.91332507,141.52,141.48,7.0686]
[1740441385205,252.91332507,141.52,141.5,32.94900015]
[1740441385404,113.09143114,141.51,141.5,32.94900015]
[1740441385605,113.09143114,141.51,141.49,7.0681]
[1740441385804,113.09143114,141.51,141.34,4.2974]
[1740441385805,113.09143114,141.51,141.33,14.1523]
[1740441386002,113.1421716,141.51,141.49,0.04678525]
[1740441386201,113.1421716,141.51,141.26,28.4188]
[1740441386402,7.0691,141.48,141.31,3.9803]
[1740441386602,113.09143114,141.5,141.31,3.9803]
[1740441386803,7.0688,141.48,141.38,7.0732]
[1740441387004,113.09143114,141.5,141.31,3.9803]
[1740441387399,613.22313206,141.33,141.32,7.0767]
[1740441387604,577.98833206,141.33,141.32,7.0767]
[1740441388811,515.46573206,141.33,141.32,7.0767]
[1740441389107,515.46573206,141.33,141.27,3.9803]
[1740441389108,484.42293206,141.33,141.27,3.9803]
[1740441389509,113.09143114,141.33,141.27,3.9803]
[1740441389911,113.09143114,141.33,141.22,14.28]
[1740441390412,0.0521794,141.29,141.25,7.0801]
[1740441390610,0.0521794,141.29,141.21,184.92]
[1740441390805,0.0521794,141.29,141.21,199.2]
[1740441391007,0.0521794,141.29,141.22,15.1835]
[1740441391302,0.0521794,141.29,141.22,8.1019]
[1740441393114,0.0521794,141.29,141.24,7.0802]
[1740441393315,4.1617,141.43,141.22,8.1019]
[1740441393316,194.0,141.42,141.22,8.1019]
[1740441393704,7.07,141.46,141.31,7.0767]
[1740441393904,212.326,141.47,141.27,14.28]
[1740441394209,212.326,141.47,141.28,4.1329]
[1740441394610,0.04862193,141.39,141.36,0.05275457]
[1740441394807,3.9428,141.49,141.37,7.0738]
[1740441395006,7.0672,141.51,141.38,4.1329]
[1740441396120,0.0511499,141.46,141.43,0.05294917]
[1740441396412,194.0,141.67,141.43,168.72853298]
[1740441396614,8.2617,141.72,141.43,168.72853298]
[1740441396812,22.5417,141.72,141.49,7.0679]
[1740441397013,194.0,141.71,141.5,4.1871]
[1740441397312,194.0,141.7,141.5,4.1871]
[1740441397616,0.05415059,141.62,141.59,0.05331913]
[1740441398016,194.0,141.69,141.5,4.1871]
[1740441398211,0.05181676,141.62,141.59,0.04883543]
[1740441398612,194.0,141.69,141.5,4.1871]
[1740441398809,7.0602,141.65,141.59,0.04756162]
[1740441399117,0.04485971,141.61,141.5,4.1871]
[1740441399315,7.0602,141.65,141.5,4.1871]
[1740441399514,7.0602,141.65,141.54,0.04784021]
[1740441399717,0.04493136,141.57,141.54,0.04784021]
[1740441399910,7.0602,141.65,141.5,4.1871]
[1740441400116,7.0602,141.65,141.51,3.9627]
[1740441400311,0.05313653,141.59,141.56,0.04896307]
[1740441400519,7.0602,141.65,141.51,3.9627]
[1740441400716,7.0608,141.64,141.51,3.9627]
[1740441400916,0.0462316,141.59,141.56,0.05198449]
[1740441401115,14.28,141.63,141.51,3.9627]
[1740441401321,0.05133175,141.59,141.56,0.05338388]
[1740441402111,194.0,141.62,141.56,0.05338388]
[1740441402319,7.0642,141.57,141.56,0.05338388]
[1740441403720,7.11166616,141.58,141.56,0.05338388]
[1740441404712,0.04796616,141.58,141.56,0.05338388]
[1740441405627,7.11166616,141.58,141.56,0.05338388]
[1740441405819,0.04796616,141.58,141.56,0.05338388]
[1740441406922,7.11176616,141.58,141.56,0.05338388]
[1740441407317,194.0,141.7,141.56,0.05338388]
[1740441407523,36.6357,141.72,141.51,3.9627]
[1740441407823,22.5217,141.72,141.51,3.9627]
[1740441408024,22.5217,141.72,141.51,18.2227]
[1740441408218,22.5217,141.72,141.57,7.0638]
[1740441408418,22.5217,141.72,141.63,0.04796244]
[1740441408619,0.05252488,141.66,141.58,4.0534]
[1740441408823,0.05202072,141.69,141.66,0.05415715]
[1740441409018,7.0585,141.69,141.61,7.0618]
[1740441409219,7.10526082,141.69,141.66,0.05203284]
[1740441409523,0.04676082,141.69,141.66,0.05203284]
[1740441409723,3.925,141.77,141.66,0.05203284]
[1740441409724,7.0573,141.71,141.66,0.05203284]
[1740441409925,7.0573,141.71,141.64,7.0602]
[1740441410120,7.0562,141.74,141.64,5.95170787]
[1740441410320,22.2106,141.81,141.64,10.00510787]
[1740441410821,22.2106,141.81,141.64,17.06530787]
[1740441411017,0.04809054,141.74,141.71,0.05199078]
[1740441411222,194.0,141.8,141.64,10.00510787]
[1740441411525,0.04848032,141.74,141.71,0.04711517]
[1740441411724,7.0567,141.73,141.66,7.0596]
[1740441411924,0.05319794,141.74,141.71,0.05017121]
[1740441412218,14.26,141.81,141.72,75.46728927]
[1740441412616,14.26,141.81,141.75,0.04796274]
[1740441412925,7.0547,141.76,141.75,0.04796274]
[1740441413224,8.488,141.87,141.75,0.04796274]
[1740441413423,12.5107,141.87,141.75,0.04796274]
[1740441413619,8.3059,141.87,141.74,4.1862]
[1740441413824,7.0522,141.81,141.8,0.04550636]
[1740441414024,4.0227,141.87,141.8,0.04550636]
[1740441414216,14.26,141.94,141.8,0.04550636]
[1740441414418,7.0506,141.85,141.8,0.04550636]
[1740441414621,0.04715152,141.88,141.86,0.05411528]
[1740441414816,14.26,141.94,141.78,7.0537]
[1740441415017,0.05108355,141.88,141.86,0.04738829]
[1740441415227,14.26,141.94,141.86,0.04738829]
[1740441415424,0.04583415,141.88,141.86,0.04738829]
[1740441415628,7.0492,141.87,141.86,0.04738829]
[1740441416730,0.05369663,141.88,141.85,218.86962634]
[1740441416932,194.0,141.93,141.85,214.74292634]
[1740441417124,194.0,141.92,141.85,184.19742634]
[1740441417330,7.0497,141.86,141.85,153.81952634]
[1740441417526,7.0497,141.86,141.85,107.13812634]
[1740441418127,7.0497,141.86,141.85,89.19302634]
[1740441418429,7.0497,141.86,141.85,34.44172634]
[1740441418828,194.0,141.85,141.65,11.8795]
[1740441419124,21.16,141.89,141.65,11.8795]
[1740441419125,208.24,141.84,141.65,11.8795]
[1740441419327,205.96,141.83,141.65,11.8795]
[1740441419532,207.3701388,141.83,141.66,34.48751977]
[1740441419729,207.3701388,141.83,141.65,7.9437]
[1740441419730,207.3701388,141.83,141.65,42.43121977]
[1740441420029,0.04894581,141.75,141.73,0.05226893]
[1740441420229,207.3701388,141.83,141.65,42.43121977]
[1740441420427,0.05325153,141.75,141.73,0.04680243]
[1740441420632,7.0514,141.83,141.74,34.48751977]
[1740441420931,14.24,141.92,141.79,34.48751977]
[1740441421726,14.24,141.92,141.84,0.04665405]
[1740441421929,0.05223169,141.87,141.84,0.04665405]
[1740441422133,7.10153169,141.87,141.84,0.04665405]
[1740441422324,0.05223169,141.87,141.84,0.04665405]
[1740441422725,7.10153169,141.87,141.84,0.04665405]
[1740441422933,0.05223169,141.87,141.84,0.04665405]
[1740441425436,624.32061046,141.86,141.73,4.2674]
[1740441425633,208.24,141.85,141.75,34.48751977]
[1740441426029,208.24,141.85,141.71,7.0571]
[1740441426030,208.24,141.85,141.62,191.0]
[1740441426236,28.70372827,141.75,141.7,7.0576]
[1740441426537,28.70372827,141.75,141.62,191.0]
[1740441426840,2.827e-05,141.75,141.74,35.56231127]
[1740441427029,50.76270368,141.76,141.74,28.50661127]
[1740441427331,50.76270368,141.76,141.75,28.50661127]
[1740441427332,50.80947433,141.76,141.75,28.50661127]
[1740441427530,0.04677065,141.76,141.75,28.50661127]
[1740441429033,0.04677065,141.76,141.74,0.04461019]
[1740441429238,0.04677065,141.76,141.74,28.55122146]
[1740441429638,0.04677065,141.76,141.74,0.04461019]
[1740441430332,0.04677065,141.76,141.68,7.0585]
[1740441430529,7.0542,141.77,141.7,28.50661127]
[1740441430937,7.0556,141.75,141.66,7.0596]
[1740441431138,8.3879,141.81,141.68,28.50661127]
[1740441431336,0.05040203,141.76,141.73,0.05339497]
[1740441431536,0.05040203,141.76,141.66,7.0596]
[1740441431736,8.3879,141.81,141.68,28.50661127]
[1740441431936,7.0561,141.74,141.68,28.50661127]
[1740441432138,7.0561,141.74,141.65,7.06]
[1740441432339,7.0561,141.74,141.68,28.50661127]
[1740441432540,7.0561,141.74,141.65,7.06]
[1740441432735,0.0484998,141.72,141.71,28.50661127]
[1740441432936,0.0484998,141.72,141.7,0.05415927]
[1740441433438,0.0484998,141.72,141.7,28.56077054]
[1740441433642,0.0484998,141.72,141.71,28.50661127]
[1740441433838,0.0484998,141.72,141.71,28.43802656]
[1740441436546,0.0484998,141.72,141.71,35.49522656]
[1740441437847,0.0484998,141.72,141.71,28.43802656]
[1740441438642,0.0484998,141.72,141.71,35.49522656]
[1740441438841,0.0484998,141.72,141.71,28.43802656]
[1740441442649,0.0484998,141.72,141.71,35.49522656]
[1740441444349,9.6200197,141.72,141.71,35.49522656]
[1740441445052,9.6200197,141.72,141.7,0.05415927]
[1740441446752,0.0484998,141.72,141.7,0.05415927]
[1740441446950,0.0484998,141.72,141.59,172.36746456]
[1740441447151,147.87767213,141.73,141.57,14.1283]
[1740441447347,147.87767213,141.73,141.66,28.43802656]
[1740441447548,152.04627213,141.73,141.66,7.0593]
[1740441447752,152.04627213,141.73,141.57,14.1283]
[1740441448055,0.04737467,141.71,141.68,0.05386597]
[1740441448254,7.0573,141.71,141.64,28.43802656]
[1740441448450,194.0,141.7,141.55,4.0457]
[1740441448646,194.0,141.69,141.58,28.43802656]
[1740441448852,194.0,141.69,141.45,205.14]
[1740441448853,194.0,141.69,141.6,28.43802656]
[1740441449051,194.0,141.69,141.5,192.8699]
[1740441449258,194.0,141.68,141.59,28.43802656]
[1740441449551,7.0603,141.65,141.58,7.0632]
[1740441449752,4.0175,141.64,141.62,0.046236]
[1740441450663,0.04663218,141.65,141.62,0.046236]
[1740441450851,0.04663218,141.65,141.64,28.43802656]
[1740441451056,0.04663218,141.65,141.64,35.49872656]
[1740441456754,0.04663218,141.65,141.64,28.43802656]
[1740441457455,0.04663218,141.65,141.64,35.49872656]